Cogmind - Beta 12 @@@ ROGUE MODE // 2023.03.16 @ 13:19:56 // Winter2019/RPGLIKE Player: ArabianSandBoa Result: Destroyed by C-35 Carver with Carbide Saw Performance ------------- Evolutions (6) 3000 Regions Visited (22) 4400 Robots Destroyed (242) 1210 Value Destroyed (9456) 9456 Prototype IDs (73) 1460 Alien Tech Used (0) 0 Bonus (6588) 6588 TOTAL SCORE: 26114 Bonus ------- Triggered High Security 1000 High Alert Combat Kills 2947 Follower Combat Kills 541 Entered DSFs 500 Network Hubs Disabled 400 Aligned with FarCom 300 Met Data Miner 300 Met Imprinter 300 Met R17 at Cetus 500 Friendly Fire -200 Cogmind --------- Core Integrity 0/700 Matter 271/300 Energy 126/420 System Corruption 0% Temperature Cool (15) Movement Flying (91) Ox1 Location -4/DSF Parts ------- > --- POWER (2) -------- Light Antimatter Reactor Quantum Reactor > --- PROPULSION (8) --- VTOL Module VTOL Module Improved Cesium-ion Thruster Cooled VTOL Module Cooled Cesium-ion Thruster Cooled Cesium-ion Thruster Cooled Nuclear Pulse Thruster > --- UTILITY (9) ------ Advanced Cooling System Gravity Neutralizer Advanced Targeting Computer Advanced Particle Charger Improved Focal Shield Experimental Thermal Shield Improved Hacking Suite Improved System Shield Improved System Shield > --- WEAPON (4) ------- Advanced Variable Charge Gun Advanced Variable Charge Gun Quantum Rifle Quantum Rifle > --- INVENTORY (4) ---- Precision Energy Filter Stasis Canceller Centrium Medium Armor Plating Graphene Brace Peak State ------------ > --- POWER ------------ Neutrino Core Quantum Reactor > --- PROPULSION ------- Improved Cesium-ion Thruster Cooled VTOL Module Cooled Cesium-ion Thruster Cooled Cesium-ion Thruster Cooled Cesium-ion Thruster Cooled Cesium-ion Thruster Biomechanical Wings Cooled Nuclear Pulse Thruster > --- UTILITY ---------- Advanced Cooling System Advanced Targeting Computer Experimental Core Analyzer Improved Weapon Cycler Centrium Medium Armor Plating Experimental Thermal Shield Improved Hacking Suite Improved Hacking Suite Hacking Drone Bay > --- WEAPON ----------- Advanced Variable Charge Gun Advanced Variable Charge Gun Quantum Rifle Quantum Rifle > --- INVENTORY -------- Centrium Medium Armor Plating Improved System Shield Improved System Shield Mini Smartbomb Launcher [Rating: 158] Favorites ----------- Power Light Angular Momentum Engine Engine Light Angular Momentum Engine Power Core Light Nuclear Core Reactor Quantum Reactor Propulsion Improved Cesium-ion Thruster Treads Medium Treads Leg Aluminum Leg Wheel Armored Huge Wheel Flight Unit Improved Cesium-ion Thruster Utility Advanced Targeting Computer Device Reaction Control System Processor Advanced Targeting Computer Hackware Makeshift Hacking Suite Protection Reactive Plating Weapon Lightning Gun Energy Gun Lightning Gun Energy Cannon Heavy Phase Cannon Ballistic Gun Enhanced Coil Gun Ballistic Cannon Magnetic Acceleration Cannon Launcher Missile Launcher Slashing Weapon Tearclaws Build | -11 -10 -10 -10 -9 -8 -7 -7 -7 -7 -6 -6 -6 -6 -6 -5 -5 -5 -5 -5 -5 -4 -4 ------- Run | Jun Mat Min Exi Min Mat Fac Low Low Zio Pro Fac Low Low Dat Pro Fac Ext Cet Arc Hub Fac DSF Slots Evolved 19 | . 5 . . 1 4 2 . 1 . 1 1 . 1 . . 3 . . . . . . Power 1 | . . . . . . . . . . 1 . . . . . . . . . . . . Propulsion 7 | . 3 . . 1 . . . 1 . . . . . . . 2 . . . . . . Utility 8 | . 1 . . . 2 2 . . . . 1 . 1 . . 1 . . . . . . Weapon 3 | . 1 . . . 2 . . . . . . . . . . . . . . . . . Parts Attached 198 | . 10 9 1 1 31 5 5 8 8 3 8 5 2 3 2 32 7 24 5 27 1 1 Power 21 | . 1 1 . 1 3 . 3 . 1 1 . 1 . . . 1 2 1 . 4 . 1 Engine 8 | . 1 . . . 2 . 3 . 1 . . 1 . . . . . . . . . . Core 9 | . . 1 . 1 1 . . . . 1 . . . . . 1 2 . . 2 . . Reactor 4 | . . . . . . . . . . . . . . . . . . 1 . 2 . 1 Propulsion 38 | . 6 . . . 7 3 . 1 . 1 1 . . . . 10 . . . 9 . . Treads 1 | . . . . . . . . . . . . . . . . . . . . 1 . . Leg . | . . . . . . . . . . . . . . . . . . . . . . . Wheel 1 | . . . . . . . . . . . . . . . . . . . . 1 . . Hover . | . . . . . . . . . . . . . . . . . . . . . . . Flight 36 | . 6 . . . 7 3 . 1 . 1 1 . . . . 10 . . . 7 . . Utility 50 | . 2 3 . . 5 2 2 . 5 1 4 1 . . . 10 1 4 3 7 . . Device 27 | . 1 . . . 1 1 2 . 3 1 3 1 . . . 7 1 2 . 4 . . Storage . | . . . . . . . . . . . . . . . . . . . . . . . Processor 7 | . 1 1 . . 2 . . . . . 1 . . . . 2 . . . . . . Hackware 9 | . . . . . 1 1 . . 2 . . . . . . 1 . . 2 2 . . Protection 7 | . . 2 . . 1 . . . . . . . . . . . . 2 1 1 . . Artifact . | . . . . . . . . . . . . . . . . . . . . . . . Weapon 89 | . 1 5 1 . 16 . . 7 2 . 3 3 2 3 2 11 4 19 2 7 1 . Energy Gun 28 | . . . 1 . 11 . . 3 1 . . . . . . 1 . 5 2 3 1 . Energy Cannon 23 | . . 3 . . . . . . . . 2 1 1 2 1 3 2 8 . . . . Ballistic Gun 15 | . . . . . 5 . . . . . 1 . . 1 . 3 . 4 . 1 . . Ballistic Cannon 3 | . . . . . . . . . . . . . . . . . . . . 3 . . Launcher 18 | . 1 2 . . . . . 3 1 . . 2 1 . 1 4 1 2 . . . . Special Weapon . | . . . . . . . . . . . . . . . . . . . . . . . Impact Weapon . | . . . . . . . . . . . . . . . . . . . . . . . Slashing Weapon 2 | . . . . . . . . 1 . . . . . . . . 1 . . . . . Piercing Weapon . | . . . . . . . . . . . . . . . . . . . . . . . Special Melee Weapon . | . . . . . . . . . . . . . . . . . . . . . . . Unidentified Prototypes 23 | . . . . . 7 1 . . 2 . . . . . . 7 . 4 . 2 . . Corrupted Parts 2 | . . 2 . . . . . . . . . . . . . . . . . . . . System Corruption 5 | . . 5 . . . . . . . . . . . . . . . . . . . . Parts Lost 3 | . . . . . . . . 1 . . 1 . . . . . . . . 1 . . Power . | . . . . . . . . . . . . . . . . . . . . . . . Propulsion 2 | . . . . . . . . 1 . . . . . . . . . . . 1 . . Utility 1 | . . . . . . . . . . . 1 . . . . . . . . . . . Weapon . | . . . . . . . . . . . . . . . . . . . . . . . Highest Loss Streak 1 | . . . . . . . . 1 . . 1 . . . . . . . . 1 . . To Critical Strikes . | . . . . . . . . . . . . . . . . . . . . . . . Average Slot Usage (%) 92 | . 92 91 85 71 86 99 100 92 86 92 95 94 90 82 90 95 96 94 96 95 100 100 Engine 4 | . 10 2 . . . . 4 5 5 5 5 8 10 10 10 8 . . . . . . Core 3 | . . 8 11 10 6 6 1 . . 3 5 1 . . . . 7 5 4 2 . . Flight 33 | . 36 44 44 40 34 32 31 29 29 31 31 31 30 30 30 32 34 34 34 29 34 34 Device 11 | . 12 2 . . 6 6 12 11 11 11 12 15 15 15 15 12 17 17 17 17 21 21 Processor 9 | . 8 11 11 10 11 12 12 11 9 5 9 10 10 10 10 12 8 8 8 5 4 4 Hackware 6 | . . . . . 1 5 6 5 5 11 10 10 10 10 10 11 13 8 8 13 13 13 Protection 2 | . . 6 11 1 3 6 6 5 5 5 2 . . . . . . 3 4 1 . . Energy Gun 8 | . . . 8 10 17 26 25 13 10 11 8 . . . . . . 4 13 16 17 17 Energy Cannon 2 | . . 7 . . . . . . . . 3 9 8 2 6 7 2 4 . . . . Ballistic Gun 3 | . 15 2 . . 3 . . . . . 3 5 5 5 5 6 6 2 . . . . Launcher 1 | . 5 5 . . . . . 3 1 5 . . 1 . 3 1 2 . . . . . Naked Turns . | . . . . . . . . . . . . . . . . . . . . . . . Heaviest Build 79 | 7 11 24 23 23 32 31 35 41 41 39 42 43 43 43 43 57 60 79 69 69 67 65 Greatest Support 78 | 10 16 16 16 21 35 38 38 43 38 42 43 43 43 43 43 57 69 74 57 78 73 65 Greatest Overweight (x) 4 | . . 1 1 1 1 . . 1 1 . . . . . . . 4 1 1 4 . . Average Overweight (x) . | . . . . . . . . . . . . . . . . . . . . . . . Largest Inventory Capacity 4 | . 1 1 1 1 2 2 2 2 4 4 4 4 4 4 4 4 4 4 4 4 4 4 Average Capacity 2 | . . 1 1 1 1 2 2 2 3 4 4 4 4 4 4 4 4 4 4 4 4 4 Most Carried 4 | . 1 1 1 1 2 2 2 2 4 4 4 4 4 4 4 4 4 4 4 4 4 4 Average Carried 2 | . . . . . 1 2 1 2 3 3 3 3 4 4 4 3 3 3 3 3 3 4 Final Capacity 4 | . 1 1 1 1 2 2 2 2 4 4 4 4 4 4 4 4 4 4 4 4 4 4 Final Carried 4 | . . 1 . 1 2 2 2 2 3 4 4 4 4 4 4 4 4 4 4 4 4 4 Class Distribution -------------------- 36% | Hacker-Sprinter 23% | Sprinter 14% | Mutant 6% | Gunner 5% | Scavenger-Gunner 4% | Scavenger-Sprinter 4% | Hacker-Mutant Dominant Class ---------------- Mutant | -10/Materials Mutant | -10/Mines Mutant | -10/Exiles Sprinter | -9/Mines Gunner | -8/Materials Sprinter | -7/Factory Sprinter | -7/Lower Caves Sprinter | -7/Lower Caves Sprinter | -7/Zion Hacker-Sprinter | -6/Proximity Caves Hacker-Sprinter | -6/Factory Hacker-Sprinter | -6/Lower Caves Hacker-Sprinter | -6/Lower Caves Hacker-Sprinter | -6/Data Miner Hacker-Sprinter | -5/Proximity Caves Hacker-Sprinter | -5/Factory Hacker-Sprinter | -5/Extension Hacker-Sprinter | -5/Cetus Scavenger-Gunner | -5/Archives Scavenger-Gunner | -5/Hub_04(d) Scavenger-Gunner | -4/Factory Scavenger-Sprinter | -4/DSF Resources | -11 -10 -10 -10 -9 -8 -7 -7 -7 -7 -6 -6 -6 -6 -6 -5 -5 -5 -5 -5 -5 -4 -4 ----------- Run | Jun Mat Min Exi Min Mat Fac Low Low Zio Pro Fac Low Low Dat Pro Fac Ext Cet Arc Hub Fac DSF Matter Collected 4390 | 200 380 47 . 255 438 27 103 87 65 293 . 140 33 . 193 954 517 280 50 328 . . Remotely . | . . . . . . . . . . . . . . . . . . . . . . . Salvage Created 9808 | . 550 48 . 487 1541 172 324 484 . 486 145 272 178 . 181 1289 996 674 510 1471 . . Parts 505 | . 50 6 . 13 98 3 14 24 . 24 7 21 9 . 12 65 76 19 13 47 . 4 Haulers Intercepted 18 | . 2 . . . 6 . . . . . 1 . . . . 5 . . . 4 . . Recyclers Shooed 4 | . 1 . . . . . . . . . . . . . . . 3 . . . . . Parts Field Recycled . | . . . . . . . . . . . . . . . . . . . . . . . Retrieved Matter . | . . . . . . . . . . . . . . . . . . . . . . . Parts Self-Destructed 58 | . . . . . . . 10 11 . 9 . 14 5 . 9 . . . . . . . Prevented 16 | . . . . . . . 3 9 . 4 . . . . . . . . . . . . Kills | -11 -10 -10 -10 -9 -8 -7 -7 -7 -7 -6 -6 -6 -6 -6 -5 -5 -5 -5 -5 -5 -4 -4 ------- Run | Jun Mat Min Exi Min Mat Fac Low Low Zio Pro Fac Low Low Dat Pro Fac Ext Cet Arc Hub Fac DSF Combat Hostiles Destroyed 194 | . 9 5 . 21 30 1 7 14 . 12 1 13 4 . 9 11 19 10 3 24 . 1 Guns 104 | . 7 . . 21 27 . 7 5 . 3 1 1 . . . 5 12 . 3 11 . 1 Cannons 17 | . . 1 . . . . . . . . . 2 . . . 2 3 8 . 1 . . AOE 65 | . 2 4 . . 2 . . 8 . 9 . 9 4 . 9 4 4 . . 10 . . Classes Destroyed 22 | . 8 . . 2 2 . . 2 . 2 1 . . . . 1 1 . . 3 . . Worker 8 | . 2 . . . 2 . . . . . . . . . . 3 . . . 1 . . Builder 6 | . 2 . . . . . . . . . . . . . . 1 3 . . . . . Tunneler 1 | . . . . . . . . . . . 1 . . . . . . . . . . . Hauler 18 | . 2 . . . 6 . . . . . 1 . . . . 5 . . . 4 . . Recycler 4 | . 2 . . . 1 . . . . . . . . . . 1 . . . . . . Operator 10 | . 1 . . . 2 1 . . . . . . . . . 1 1 . 4 . . . Drone 2 | . . . . . . . . . . 2 . . . . . . . . . . . . Watcher 15 | . 2 . . . 5 1 . . . . . . . . . 3 3 1 . . . . Swarmer 66 | . 3 3 . . 11 . 2 4 . 9 . 9 4 . 8 3 5 . . 5 . . Cutter 3 | . . . . . . . . . . . . . . . . . . . . 2 . 1 Grunt 60 | . 6 2 . 6 13 . 4 7 . . 1 3 . . . 3 4 2 . 9 . . Brawler 2 | . . . . . . . . 1 . 1 . . . . . . . . . . . . Duelist 6 | . . . . 1 . . . . . . . 1 . . 1 . . 1 . 2 . . Protector 1 | . . . . . . . . . . . . . . . . . . . . 1 . . Sentry 22 | . . . . . 5 1 . . . . . . . . . 3 7 . 3 3 . . Specialist 2 | . . . . . . . . . . . . . . . . . . . . 2 . . Hunter 4 | . . . . . 1 . 1 . . . . . . . . 1 1 . . . . . Programmer 1 | . . . . . . . . . . . . . . . . 1 . . . . . . Behemoth 2 | . . . . . . . . . . . . . . . . . 2 . . . . . Cetus Guard 7 | . . . . . . . . . . . . . . . . . . 7 . . . . Decomposer 1 | . . . . . . . . . . 1 . . . . . . . . . . . . Samaritan 2 | . . . . . . . . . . 2 . . . . . . . . . . . . Thief 2 | . . . . . . . . 2 . . . . . . . . . . . . . . Assembled 14 | . . . . 14 . . . . . . . . . . . . . . . . . . Best Kill Streak 15 | . 3 2 . 15 12 2 4 4 . 4 3 5 4 . 5 6 10 4 7 13 . 1 Combat Bots Only 15 | . 2 2 . 15 8 1 4 4 . 4 1 5 4 . 5 4 8 4 3 12 . 1 Max Kills in Single Turn 11 | . 2 2 . 1 2 1 2 2 . 3 1 3 2 . 3 3 4 1 1 11 . 1 Gunslinging 1 | . . . . . . . 1 . . . . . . . . . 1 . . 1 . . Exploded 10 | . 1 2 . . 2 . . 2 . 3 . 3 2 . 3 2 4 . . 10 . . Melee . | . . . . . . . . . . . . . . . . . . . . . . . Uniques/NPCs Destroyed . | . . . . . . . . . . . . . . . . . . . . . . . Combat | -11 -10 -10 -10 -9 -8 -7 -7 -7 -7 -6 -6 -6 -6 -6 -5 -5 -5 -5 -5 -5 -4 -4 -------- Run | Jun Mat Min Exi Min Mat Fac Low Low Zio Pro Fac Low Low Dat Pro Fac Ext Cet Arc Hub Fac DSF Damage Taken 7429 | . 415 186 . 398 396 282 307 522 179 111 103 233 37 . 280 493 911 840 305 920 16 495 Core 5844 | . 349 139 . 346 298 203 217 373 125 98 71 196 31 . 239 402 743 643 235 715 12 409 Absorbed by Shields 92 | . . . . . . . . . . . . . . . . . 92 . . . . . Redirected to Core 4513 | . 201 123 . 155 243 179 201 322 125 49 53 128 20 . 149 330 596 526 217 550 12 334 Core Remaining (%) 65 | 100 . . . 75 89 . . . . 30 . . . . 43 . . . . 57 . . Volleys Fired 602 | . 96 22 . . 74 18 18 28 12 30 5 18 6 . 13 84 61 34 17 60 . 6 Largest 4 | . 1 1 . . 4 2 4 4 2 2 3 4 2 . 2 3 3 3 3 4 . 4 Hottest 348 | . 30 75 . . 226 110 220 220 110 110 140 239 115 . 115 213 180 260 254 348 . 348 Shots Fired 1239 | . 96 20 . 53 176 36 47 55 18 53 15 39 10 . 16 157 130 79 47 177 . 15 Gun 984 | . 78 . . 53 176 36 47 47 13 46 15 13 4 . 3 111 96 14 47 170 . 15 Cannon 191 | . . 16 . . . . . . . . . 21 4 . 3 42 33 65 . 7 . . Launcher 64 | . 18 4 . . . . . 8 5 7 . 5 2 . 10 4 1 . . . . . Special . | . . . . . . . . . . . . . . . . . . . . . . . Kinetic 378 | . 78 . . . 52 . . . . . 5 12 4 . 3 111 96 10 . 7 . . Thermal 669 | . . 16 . 53 81 30 36 25 7 23 5 15 4 . 3 37 33 69 47 170 . 15 Explosive 64 | . 18 4 . . . . . 8 5 7 . 5 2 . 10 4 1 . . . . . Electromagnetic 128 | . . . . . 43 6 11 22 6 23 5 7 . . . 5 . . . . . . Robot Hit Streak 45 | . 9 4 . 19 45 24 15 10 11 10 6 6 8 . 6 12 17 30 9 18 . 19 Robot Miss Streak 6 | . 6 2 . 1 4 3 2 2 1 4 4 2 2 . 2 2 3 2 1 2 . 1 Penetration Max 1 | . . . . . . . . . . . 1 1 . . . 1 1 . . . . . Secondary Targets 12 | . . . . . 1 . 2 1 . . 1 . . . . . 2 . 1 4 . . Max Gunslinging Chain 1 | . . . . . 1 . 1 1 . . 1 . . . . . 1 . 1 1 . . Autonomous 121 | . . . . 53 68 . . . . . . . . . . . . . . . . . Shots Hit Robots 774 | . 54 8 . 49 132 21 30 38 12 28 11 21 5 . 6 71 82 62 38 96 . 10 Core Hits 425 | . 32 5 . 21 61 4 12 24 1 24 6 19 10 . 17 43 50 26 17 50 . 3 Critical Kills 8 | . . . . . . . . . . . 1 1 . . . 4 1 1 . . . . Critical Parts Destroyed 6 | . . . . . . . . . . . . . . . . 2 3 1 . . . . Critical Strikes 29 | . . . . . 4 3 2 3 . . 2 1 . . . 6 5 2 . 1 . . Burn 10 | . . . . . 2 3 2 2 . . 1 . . . . . . . . . . . Meltdown 4 | . . . . . . . . . . . . 1 . . . 2 . 1 . . . . Destroy 11 | . . . . . . . . . . . 1 . . . . 4 5 1 . . . . Blast 1 | . . . . . . . . . . . . . . . . . . . . 1 . . Corrupt 3 | . . . . . 2 . . 1 . . . . . . . . . . . . . . Melee Attacks 6 | . . . . . . . . . 6 . . . . . . . . . . . . . Impact . | . . . . . . . . . . . . . . . . . . . . . . . Slashing 6 | . . . . . . . . . 6 . . . . . . . . . . . . . Piercing . | . . . . . . . . . . . . . . . . . . . . . . . Sneak Attacks . | . . . . . . . . . . . . . . . . . . . . . . . Combat Hostiles . | . . . . . . . . . . . . . . . . . . . . . . . Follow-up Attacks . | . . . . . . . . . . . . . . . . . . . . . . . Damage Inflicted 29785 | . 1025 386 . 1424 3314 584 650 1505 396 1401 339 1177 468 . 1187 2794 3571 2964 1175 4939 . 486 Guns 17659 | . 672 . . 1424 3121 470 650 723 198 624 275 231 78 . 60 1551 2294 265 1175 3362 . 486 Cannons 4997 | . . 175 . . . . . . . . . 244 68 . 77 749 945 2699 . 40 . . Explosions 7129 | . 353 211 . . 193 114 . 782 198 777 64 702 322 . 1050 494 332 . . 1537 . . Melee . | . . . . . . . . . . . . . . . . . . . . . . . Ramming . | . . . . . . . . . . . . . . . . . . . . . . . Kinetic 5934 | . 672 . . . 690 . . . . . 125 231 78 . 60 1551 2294 193 . 40 . . Thermal 15535 | . . 175 . 1424 2153 514 458 407 108 314 130 172 68 . 77 796 945 2771 1175 3362 . 486 Explosive 4955 | . 353 211 . . 36 . . 782 198 737 . 702 322 . 1050 232 332 . . . . . Electromagnetic 3361 | . . . . . 435 70 192 316 90 350 84 72 . . . 215 . . . 1537 . . Impact . | . . . . . . . . . . . . . . . . . . . . . . . Slashing . | . . . . . . . . . . . . . . . . . . . . . . . Piercing . | . . . . . . . . . . . . . . . . . . . . . . . Highest Corruption 10 | . . 5 5 5 . . . . . . 1 1 1 1 1 2 3 3 3 10 . . Average Corruption 3 | . . 4 5 5 . . . . . . 1 1 1 1 1 2 2 3 3 6 . . Corruption Purged . | . . . . . . . . . . . . . . . . . . . . . . . Corruption Blocked . | . . . . . . . . . . . . . . . . . . . . . . . Effects 50 | . . 9 1 2 . . . . . . 2 2 . . . 1 9 7 4 13 . . Message Errors 11 | . . 3 1 . . . . . . . 1 . . . . . 2 3 . 1 . . Matter Fused 9 | . . 1 . 1 . . . . . . 1 . . . . . 2 . 1 3 . . Heat Flow Errors 9 | . . 3 . . . . . . . . . . . . . . 1 2 . 3 . . Energy Discharges 2 | . . . . 1 . . . . . . . . . . . . . . 1 . . . Data Loss (minor) 6 | . . . . . . . . . . . . . . . . . 3 . 1 2 . . Data Loss (major) 2 | . . . . . . . . . . . . . . . . . 1 . 1 . . . Misfires 3 | . . . . . . . . . . . . 1 . . . 1 . 1 . . . . Misdirections 1 | . . . . . . . . . . . . . . . . . . . . 1 . . Weapon Failures 7 | . . 2 . . . . . . . . . 1 . . . . . 1 . 3 . . Overload Shots . | . . . . . . . . . . . . . . . . . . . . . . . Overflow Damage 379 | . 17 42 . . . 39 . 51 . 8 . . 31 . 18 41 85 19 . 28 . . Projectiles 111 | . . 30 . . . . . . . . . . . . . 19 43 19 . . . . Explosions 268 | . 17 12 . . . 39 . 51 . 8 . . 31 . 18 22 42 . . 28 . . Melee . | . . . . . . . . . . . . . . . . . . . . . . . Knockbacks . | . . . . . . . . . . . . . . . . . . . . . . . Impact . | . . . . . . . . . . . . . . . . . . . . . . . Kinetic . | . . . . . . . . . . . . . . . . . . . . . . . Secondary . | . . . . . . . . . . . . . . . . . . . . . . . Self-Inflicted Damage 469 | . . . . . 34 54 . 173 . 46 . 60 . . . . . . . 102 . . Shots 9 | . . . . . 1 1 . 4 . 1 . 1 . . . . . . . 1 . . Rammed . | . . . . . . . . . . . . . . . . . . . . . . . Targets Rammed . | . . . . . . . . . . . . . . . . . . . . . . . Kicked . | . . . . . . . . . . . . . . . . . . . . . . . Crushed . | . . . . . . . . . . . . . . . . . . . . . . . Highest Temperature 428 | . 8 425 1 20 428 18 97 78 34 45 130 150 . . 26 243 318 398 406 414 11 53 Average Temperature 96 | . 3 172 1 8 76 7 50 33 34 20 72 84 . . 21 46 101 132 132 120 11 30 Received Heat Transfer 1488 | . 186 . . 129 126 51 90 117 89 9 9 45 . . 33 57 214 153 72 108 . . Effects 10 | . . 3 . . 2 . . . . . . . . . . . . . 1 4 . . Shutdowns 1 | . . . . . . . . . . . . . . . . . . . . 1 . . Energy Bleed 4 | . . 2 . . 1 . . . . . . . . . . . . . . 1 . . Interference 3 | . . . . . 1 . . . . . . . . . . . . . . 2 . . Short Circuit 1 | . . . . . . . . . . . . . . . . . . . 1 . . . Damage (major) 1 | . . 1 . . . . . . . . . . . . . . . . . . . . Siege Activations . | . . . . . . . . . . . . . . . . . . . . . . . Robots Corrupted 2 | . . . . . . . . 1 . . . . . . . . . . . 1 . . Combat Hostiles 2 | . . . . . . . . 1 . . . . . . . . . . . 1 . . Parts Fried 25 | . . . . . 1 2 1 . . 6 1 . . . . 1 . . . 13 . . Impact Corruptions . | . . . . . . . . . . . . . . . . . . . . . . . Robots Melted 8 | . . . . . 1 1 . . . . . 1 . . . 2 . 2 . 1 . . Combat Hostiles 6 | . . . . . 1 1 . . . . . 1 . . . . . 2 . 1 . . Parts Melted 39 | . . . . . 3 4 1 3 . . 1 3 . . . 2 . 7 4 11 . . Heat Transferred 17677 | . . 259 . 1776 2616 1025 925 851 185 518 185 185 74 . 74 885 740 2220 1406 3346 . 407 Parts Sabotaged . | . . . . . . . . . . . . . . . . . . . . . . . Parts Stolen 1 | . . . . . . . . . . . . 1 . . . . . . . . . . Parts Stripped . | . . . . . . . . . . . . . . . . . . . . . . . Power Chain Reactions 5 | . . . . . 1 1 . . . 1 1 . . . . . . . . 1 . . Missiles Intercepted . | . . . . . . . . . . . . . . . . . . . . . . . Alert | -11 -10 -10 -10 -9 -8 -7 -7 -7 -7 -6 -6 -6 -6 -6 -5 -5 -5 -5 -5 -5 -4 -4 ------- Run | Jun Mat Min Exi Min Mat Fac Low Low Zio Pro Fac Low Low Dat Pro Fac Ext Cet Arc Hub Fac DSF Peak Influence 2129 | . 378 320 . 189 1135 814 . . . . 433 . . . . 1776 1801 1644 824 2129 1100 796 Initial 1100 | . . 147 . . 73 515 . . . . 364 . . . . 163 870 1100 577 288 1100 770 Average 705 | . 202 224 . 73 637 630 . . . . 391 . . . . 788 1329 1348 784 835 1100 775 Maximum Alert Level 5 | . 1 1 . . 4 3 . . . . 2 . . . . 5 5 5 3 5 4 3 Low Security (%) 17 | . 46 19 . 100 9 . . . . . . . . . . 28 . . . . . . Level 1 22 | . 53 80 . . 14 . . . . . 50 . . . . 8 . . . 20 . . Level 2 11 | . . . . . 22 66 . . . . 49 . . . . 19 . . 16 4 . . Level 3 23 | . . . . . 51 33 . . . . . . . . . 8 22 . 83 63 . 100 Level 4 19 | . . . . . 1 . . . . . . . . . . 22 54 89 . 7 100 . Level 5 3 | . . . . . . . . . . . . . . . . 12 8 10 . . . . High Security 1 | . . . . . . . . . . . . . . . . . 14 . . 3 . . Max Security . | . . . . . . . . . . . . . . . . . . . . . . . Squads Dispatched 39 | . 2 . . . 7 2 . . . 1 2 . 1 . . 9 4 . . 9 . 2 Investigation 13 | . 1 . . . 5 2 . . . . 1 . 1 . . 3 . . . . . . Extermination . | . . . . . . . . . . . . . . . . . . . . . . . Reinforcement 17 | . 1 . . . 1 . . . . . 1 . . . . 4 2 . . 6 . 2 Assault 8 | . . . . . 1 . . . . 1 . . . . . 2 2 . . 2 . . Garrison 1 | . . . . . . . . . . . . . . . . . . . . 1 . . Intercept . | . . . . . . . . . . . . . . . . . . . . . . . Searches Triggered . | . . . . . . . . . . . . . . . . . . . . . . . Data Miner Redirects 6 | . . . . . . . . . . . . . . . . 4 1 . . 1 . . Construction Impeded 2 | . . . . . . . . . . . . . . . . . 2 . . . . . Haulers Reinforced 6 | . . . . . . . . . . . 1 . . . . 4 . . . 1 . . Active Scanning Responses . | . . . . . . . . . . . . . . . . . . . . . . . Cargo Convoy Interrupts . | . . . . . . . . . . . . . . . . . . . . . . . Stealth | -11 -10 -10 -10 -9 -8 -7 -7 -7 -7 -6 -6 -6 -6 -6 -5 -5 -5 -5 -5 -5 -4 -4 --------- Run | Jun Mat Min Exi Min Mat Fac Low Low Zio Pro Fac Low Low Dat Pro Fac Ext Cet Arc Hub Fac DSF Distress Signals 8 | . 2 . . . 1 . . . . . . . . . . 1 1 2 . 1 . . Communications Jammed . | . . . . . . . . . . . . . . . . . . . . . . . Distress Signals . | . . . . . . . . . . . . . . . . . . . . . . . Times Spotted 360 | . 22 5 . 25 36 9 17 15 25 19 4 16 4 . 16 31 37 19 10 44 1 5 Peak Tracking Total 23 | . 5 3 . 15 6 5 6 4 23 9 3 4 4 . 7 8 12 6 2 13 1 6 Tactical Retreats 39 | . 3 . . 2 1 2 2 . 2 5 . 2 . . . 9 5 1 . 5 . . Traps | -11 -10 -10 -10 -9 -8 -7 -7 -7 -7 -6 -6 -6 -6 -6 -5 -5 -5 -5 -5 -5 -4 -4 ------- Run | Jun Mat Min Exi Min Mat Fac Low Low Zio Pro Fac Low Low Dat Pro Fac Ext Cet Arc Hub Fac DSF Traps Triggered 8 | . 1 2 . . . . . . . . . . . . . 1 1 . . 2 . 1 Indirectly 1 | . . . . . . . . . . . . . . . . 1 . . . . . . Trap Hack Attempts . | . . . . . . . . . . . . . . . . . . . . . . . Triggered . | . . . . . . . . . . . . . . . . . . . . . . . Disarmed . | . . . . . . . . . . . . . . . . . . . . . . . Reprogrammed . | . . . . . . . . . . . . . . . . . . . . . . . Reused 1 | . . 1 . . . . . . . . . . . . . . . . . . . . Traps Extracted . | . . . . . . . . . . . . . . . . . . . . . . . Installed 4 | . . 4 . . . . . . . . . . . . . . . . . . . . Triggered 3 | . . 1 . . . . . 2 . . . . . . . . . . . . . . Machines | -11 -10 -10 -10 -9 -8 -7 -7 -7 -7 -6 -6 -6 -6 -6 -5 -5 -5 -5 -5 -5 -4 -4 ---------- Run | Jun Mat Min Exi Min Mat Fac Low Low Zio Pro Fac Low Low Dat Pro Fac Ext Cet Arc Hub Fac DSF Machines Disabled 79 | . 8 1 . . 4 4 . . 1 . . . . . . 32 4 1 3 21 . . Max in Single Turn 12 | . 2 1 . . 1 2 . . 1 . . . . . . 8 1 1 1 12 . . Garrison Access 2 | . . . . . 1 . . . . . . . . . . . . . . 1 . . Network Hub 2 | . . . . . . . . . . . . . . . . . . . . 2 . . Machines Repaired . | . . . . . . . . . . . . . . . . . . . . . . . Machines Sabotaged . | . . . . . . . . . . . . . . . . . . . . . . . Overloaded Fab Kills . | . . . . . . . . . . . . . . . . . . . . . . . Hacking | -11 -10 -10 -10 -9 -8 -7 -7 -7 -7 -6 -6 -6 -6 -6 -5 -5 -5 -5 -5 -5 -4 -4 --------- Run | Jun Mat Min Exi Min Mat Fac Low Low Zio Pro Fac Low Low Dat Pro Fac Ext Cet Arc Hub Fac DSF Machines Accessed 43 | . 3 1 1 . 9 3 . . 1 . 3 1 1 2 . 6 3 2 1 4 2 . Terminals 26 | . 2 . . . 7 2 . . . . 1 . 1 . . 3 3 2 . 4 1 . Fabricators 4 | . . . . . . . . . . . 1 . . . . 2 . . . . 1 . Repair Stations . | . . . . . . . . . . . . . . . . . . . . . . . Recycling Units 4 | . 1 . . . 1 1 . . . . 1 . . . . . . . . . . . Scanalyzers 2 | . . . . . 1 . . . . . . . . . . 1 . . . . . . Garrison Access . | . . . . . . . . . . . . . . . . . . . . . . . Total Hacks 193 | . 9 1 1 . 36 8 . . 3 . 10 8 5 19 . 16 14 8 25 26 4 . Successful 142 | . 5 1 1 . 25 2 . . 3 . 6 8 5 19 . 8 12 4 25 17 1 . Failed 51 | . 4 . . . 11 6 . . . . 4 . . . . 8 2 4 . 9 3 . Catastrophic 4 | . . . . . 1 2 . . . . . . . . . . . . . 1 . . Database Lockouts . | . . . . . . . . . . . . . . . . . . . . . . . Manual 40 | . . . 1 . 8 4 . . . . 3 . . . . 7 2 1 . 11 3 . Terminals 116 | . 8 . . . 34 7 . . . . 5 . 5 . . 8 14 8 . 26 1 . Fabricators 13 | . . . . . . . . . . . 3 . . . . 7 . . . . 3 . Repair Stations . | . . . . . . . . . . . . . . . . . . . . . . . Recycling Units 5 | . 1 . . . 1 1 . . . . 2 . . . . . . . . . . . Scanalyzers 2 | . . . . . 1 . . . . . . . . . . 1 . . . . . . Garrison Access . | . . . . . . . . . . . . . . . . . . . . . . . Terminal Hacks 128 | . 4 1 1 . 22 1 . . 3 . 4 8 5 19 . 4 11 4 25 15 1 . Record 47 | . . . . . 2 . . . . . . 8 5 . . . 3 4 25 . . . Part Schematic 15 | . . . . . . . . . 3 . . . . 10 . . 2 . . . . . Robot Schematic 6 | . . . . . . . . . . . . . . 6 . . . . . . . . Robot Analysis 4 | . . . . . 1 . . . . . . . . . . . . . . 3 . . Prototype ID Bank 12 | . . . . . 5 . . . . . 1 . . 3 . . . . . 3 . . Open Door 1 | . . 1 . . . . . . . . . . . . . . . . . . . . Open DSF 1 | . . . . . . . . . . . . . . . . . . . . . 1 . Level Access Points 1 | . . . . . . . . . . . . . . . . . . . . 1 . . Branch Access Points 7 | . . . . . 1 1 . . . . . . . . . 2 1 . . 2 . . Emergency Access Points 4 | . . . . . 2 . . . . . 1 . . . . . . . . 1 . . Machine Index 1 | . . . . . . . . . . . . . . . . . 1 . . . . . Scanalyzer Index 1 | . . . . . 1 . . . . . . . . . . . . . . . . . Alert Level 1 | . . . . . 1 . . . . . . . . . . . . . . . . . Unreport Threat 2 | . 1 . . . . . . . . . . . . . . . 1 . . . . . Locate Traps 1 | . . . . . 1 . . . . . . . . . . . . . . . . . Dispatch Records 3 | . 1 . . . 2 . . . . . . . . . . . . . . . . . Maintenance Status 1 | . . . . . 1 . . . . . . . . . . . . . . . . . Recall Investigation 1 | . . . . . . . . . . . . . . . . . . . . 1 . . Recall Extermination 1 | . . . . . . . . . . . . . . . . . . . . 1 . . Recall Reinforcements 1 | . . . . . . . . . . . . . . . . . . . . 1 . . Hauler Manifests 3 | . . . . . 3 . . . . . . . . . . . . . . . . . Registered Components 3 | . 1 . . . 1 . . . . . . . . . . . . . . 1 . . Registered Prototypes 3 | . . . . . . . . . . . 1 . . . . 1 1 . . . . . Zone Layout 7 | . 1 . . . 1 . . . . . 1 . . . . 1 2 . . 1 . . EX-Prototype ID Bank 1 | . . . 1 . . . . . . . . . . . . . . . . . . . Fabricator Hacks 1 | . . . . . . . . . . . . . . . . 1 . . . . . . Build 1 | . . . . . . . . . . . . . . . . 1 . . . . . . Repair Station Hacks . | . . . . . . . . . . . . . . . . . . . . . . . Recycling Unit Hacks 5 | . 1 . . . 1 1 . . . . 2 . . . . . . . . . . . Report Inventory 4 | . 1 . . . 1 1 . . . . 1 . . . . . . . . . . . Retrieve Components 1 | . . . . . . . . . . . 1 . . . . . . . . . . . Scanalyzer . | . . . . . . . . . . . . . . . . . . . . . . . Garrison Access Hacks . | . . . . . . . . . . . . . . . . . . . . . . . Unauthorized Hacks 8 | . . . . . 2 . . . . . . . . . . 3 1 . . 2 . . Terminals 4 | . . . . . 1 . . . . . . . . . . . 1 . . 2 . . Botnet 4 | . . . . . 1 . . . . . . . . . . . 1 . . 2 . . Fabricators 2 | . . . . . . . . . . . . . . . . 2 . . . . . . Fabnet 2 | . . . . . . . . . . . . . . . . 2 . . . . . . Repair Stations . | . . . . . . . . . . . . . . . . . . . . . . . Recycling Units . | . . . . . . . . . . . . . . . . . . . . . . . Scanalyzers 2 | . . . . . 1 . . . . . . . . . . 1 . . . . . . Extract 2 | . . . . . 1 . . . . . . . . . . 1 . . . . . . Garrison Access . | . . . . . . . . . . . . . . . . . . . . . . . Data Cores Recovered 4 | . . . . . 2 . . . . . . . . . . 1 1 . . . . . Used 1 | . . . . . 1 . . . . . . . . . . . . . . . . . Hacking Detections 26 | . 1 . . . 7 2 . . . . 1 . 1 . . 5 2 2 . 4 1 . Full Trace Events 11 | . . . . . 5 2 . . . . 1 . 1 . . 2 . . . . . . Feedback Events 1 | . . . . . . . . . . . 1 . . . . . . . . . . . Corruption 1 | . . . . . . . . . . . 1 . . . . . . . . . . . Feedback Blocked . | . . . . . . . . . . . . . . . . . . . . . . . Robot Schematics Acquired 10 | . . . . . . . . . 4 . . . . 6 . . . . . . . . Robots Built . | . . . . . . . . . . . . . . . . . . . . . . . Authchips . | . . . . . . . . . . . . . . . . . . . . . . . Time . | . . . . . . . . . . . . . . . . . . . . . . . Total Robot Build Rating . | . . . . . . . . . . . . . . . . . . . . . . . Part Schematics Acquired 33 | . . . . . 3 . . . 17 . . . . 10 . 1 2 . . . . . Parts Built 1 | . . . . . . . . . . . . . . . . 1 . . . . . . Authchips . | . . . . . . . . . . . . . . . . . . . . . . . Time 111 | . . . . . . . . . . . . . . . . 111 . . . . . . Total Part Build Rating 9 | . . . . . . . . . . . . . . . . 9 . . . . . . Parts Repaired . | . . . . . . . . . . . . . . . . . . . . . . . Time . | . . . . . . . . . . . . . . . . . . . . . . . Parts Recycled . | . . . . . . . . . . . . . . . . . . . . . . . Recycled Matter . | . . . . . . . . . . . . . . . . . . . . . . . Retrieved Matter . | . . . . . . . . . . . . . . . . . . . . . . . Retrieved Components 3 | . . . . . . . . . . . 3 . . . . . . . . . . . Parts Scanalyzed . | . . . . . . . . . . . . . . . . . . . . . . . Part Schematics Acquired . | . . . . . . . . . . . . . . . . . . . . . . . Parts Damaged . | . . . . . . . . . . . . . . . . . . . . . . . Bothacking | -11 -10 -10 -10 -9 -8 -7 -7 -7 -7 -6 -6 -6 -6 -6 -5 -5 -5 -5 -5 -5 -4 -4 ------------ Run | Jun Mat Min Exi Min Mat Fac Low Low Zio Pro Fac Low Low Dat Pro Fac Ext Cet Arc Hub Fac DSF Used RIF Installer . | . . . . . . . . . . . . . . . . . . . . . . . Robots Hacked . | . . . . . . . . . . . . . . . . . . . . . . . Non-combat . | . . . . . . . . . . . . . . . . . . . . . . . Combat . | . . . . . . . . . . . . . . . . . . . . . . . Robot Hacks Applied . | . . . . . . . . . . . . . . . . . . . . . . . Relay Couplers Released 2 | . . . . . 1 . . . . . . . . . . . . . . 1 . . Machine Destruction 2 | . . . . . 1 . . . . . . . . . . . . . . 1 . . Fabnet Peak Effective % 6 | . . . . . . . . . . . . . . . . . . . . . 6 6 Robots Rewired 3 | . . . . . . . . . . . . . . . . . 3 . . . . . Allies Hacked . | . . . . . . . . . . . . . . . . . . . . . . . Hacks Repelled . | . . . . . . . . . . . . . . . . . . . . . . . Allies | -11 -10 -10 -10 -9 -8 -7 -7 -7 -7 -6 -6 -6 -6 -6 -5 -5 -5 -5 -5 -5 -4 -4 -------- Run | Jun Mat Min Exi Min Mat Fac Low Low Zio Pro Fac Low Low Dat Pro Fac Ext Cet Arc Hub Fac DSF Total Allies 18 | . . . . 1 . . . . 3 . . 2 . . 1 . 9 2 . . . . Largest Group 7 | . . . . 1 . . . . 3 . . 2 . . 1 . 7 2 1 1 . . Highest-Rated Group 328 | . . . . 31 . . . . 92 . . 62 . . 96 . 328 192 96 96 . . Highest-Rated Ally 159 | . . . . 31 . . . . 39 . . 31 . . 96 . 159 96 96 96 . . Total Orders 4 | . . . . . . . . . . . 1 . . . . 3 . . . . . . EXPLORE 1 | . . . . . . . . . . . . . . . . 1 . . . . . . RETURN 3 | . . . . . . . . . . . 1 . . . . 2 . . . . . . Ally Attacks 111 | . . . . 1 . . . . . . . . . . 9 . 47 32 7 15 . . Total Damage 3557 | . . . . 20 . . . . . . . . . . 422 . 1072 1162 377 504 . . Kills 20 | . . . . 1 . . . . . . . . . . 1 . 5 8 1 4 . . Allies Corrupted . | . . . . . . . . . . . . . . . . . . . . . . . Allies Melted . | . . . . . . . . . . . . . . . . . . . . . . . Intel | -11 -10 -10 -10 -9 -8 -7 -7 -7 -7 -6 -6 -6 -6 -6 -5 -5 -5 -5 -5 -5 -4 -4 ------- Run | Jun Mat Min Exi Min Mat Fac Low Low Zio Pro Fac Low Low Dat Pro Fac Ext Cet Arc Hub Fac DSF Robot Analysis Total 4 | . . . . . 1 . . . . . . . . . . . . . . 3 . . Derelict Logs Recovered 11 | . . 1 . 1 . . 2 1 1 2 . 1 1 . 1 . . . . . . . Drone Launches 3 | . . . . . . . . . . . 1 . . . . 2 . . . . . . Drone Recoveries 3 | . . . . . . . . . . . 1 . . . . 2 . . . . . . Exploration | -11 -10 -10 -10 -9 -8 -7 -7 -7 -7 -6 -6 -6 -6 -6 -5 -5 -5 -5 -5 -5 -4 -4 ------------- Run | Jun Mat Min Exi Min Mat Fac Low Low Zio Pro Fac Low Low Dat Pro Fac Ext Cet Arc Hub Fac DSF Turns Passed 6537 | . 597 445 155 157 700 148 312 324 311 323 139 263 90 21 133 755 429 445 159 578 26 27 Spaces Moved 10806 | 1 513 436 207 355 853 350 918 635 965 867 292 596 264 75 400 1185 547 401 97 688 121 40 Core 35 | . . . . . . . . . . . . . . . . . 34 . . 1 . . Treads . | . . . . . . . . . . . . . . . . . . . . . . . Legs 42 | 1 41 . . . . . . . . . . . . . . . . . . . . . Wheels 106 | . . . . . . . . . . . . . . . . . . . . 106 . . Hover . | . . . . . . . . . . . . . . . . . . . . . . . Flight 10623 | . 472 436 207 355 853 350 918 635 965 867 292 596 264 75 400 1185 513 401 97 581 121 40 Fastest Speed 5 | 120 31 31 31 31 23 23 23 20 23 20 20 20 20 20 20 14 6 5 14 6 7 14 Average Speed 29 | 120 40 71 69 35 39 23 23 28 23 20 20 20 20 20 20 16 29 45 75 31 13 14 Slowest Speed 250 | 120 120 111 111 111 93 23 23 90 90 23 20 20 20 20 20 22 250 87 91 250 14 14 Overloaded Moves 361 | . . . . . . . . . . . . . . . . . 85 130 . 138 8 . Propulsion Burnouts . | . . . . . . . . . . . . . . . . . . . . . . . Robots Hopped 34 | . 1 . . 4 3 2 3 . 1 2 3 . . . 5 2 2 . . 6 . . Cave-ins Triggered . | . . . . . . . . . . . . . . . . . . . . . . . Exploration Rate (%) 60 | 2 95 92 59 78 72 11 93 73 87 89 12 70 40 68 78 28 75 89 83 57 6 39 Regions Visited 22 Branch Regions 15 Pre-discovered Areas 5 | . . . . 1 . . . 1 3 . . . . . . . . . . . . . Known Exits Taken 10 | . . . . . 1 1 1 . . 1 1 . . . 1 1 1 . . 1 1 . Unknown Exits Taken 12 | 1 1 1 1 1 . . . 1 1 . . 1 1 1 . . . 1 1 . . . Scrap Searched 20 | . . 2 . 1 . . 2 5 4 2 . 3 1 . . . . . . . . . Spaces Dug 77 | . . 2 . . 1 . . . . . . . . . . 45 . 2 . 24 . 3 Terrain Destroyed 1302 | . 105 34 . 5 46 30 . 63 7 53 2 54 19 . 71 331 76 7 2 394 . 3 Melee . | . . . . . . . . . . . . . . . . . . . . . . . Projectile 266 | . . 8 . 5 11 . . . . . . 10 3 . 1 99 65 7 2 52 . 3 AOE 1036 | . 105 26 . . 35 30 . 63 7 53 2 44 16 . 70 232 11 . . 342 . . Terrain Rammed . | . . . . . . . . . . . . . . . . . . . . . . . Walls Destroyed . | . . . . . . . . . . . . . . . . . . . . . . . Machines Disabled . | . . . . . . . . . . . . . . . . . . . . . . . Actions | -11 -10 -10 -10 -9 -8 -7 -7 -7 -7 -6 -6 -6 -6 -6 -5 -5 -5 -5 -5 -5 -4 -4 --------- Run | Jun Mat Min Exi Min Mat Fac Low Low Zio Pro Fac Low Low Dat Pro Fac Ext Cet Arc Hub Fac DSF Total 13200 | . 802 547 218 383 1117 378 978 727 1018 954 357 705 288 80 428 1600 729 621 155 934 129 52 Wait 1140 | . 165 64 9 12 104 5 19 44 22 40 45 68 9 . 19 238 31 101 33 101 6 5 Move 10720 | . 510 435 206 347 847 345 911 634 962 862 285 595 263 74 391 1180 542 400 96 675 120 40 Hop 30 | . 1 . . 3 2 2 3 . 1 2 3 . . . 3 2 2 . . 6 . . Pick Up 50 | . 2 1 . . 5 . 4 1 3 5 2 . . . . 11 1 7 2 5 1 . Fast Attach 103 | . 6 4 1 . 22 3 4 2 2 2 3 2 . 3 . 15 1 11 2 19 . 1 Attach 38 | . 2 4 . . 4 . . . 1 1 2 2 . . . 8 1 9 . 4 . . Detach 32 | . . 5 . 1 4 . . . . . 1 2 . . . 3 1 10 . 5 . . Swap 57 | . 2 1 . 1 5 2 1 6 5 . 3 1 2 . 2 9 5 4 3 4 1 . Drop 130 | . 4 3 2 1 22 3 8 3 4 4 3 2 . 3 . 27 5 18 2 15 1 . Fire 602 | . 96 22 . . 74 18 18 28 12 30 5 18 6 . 13 84 61 34 17 60 . 6 Melee 6 | . . . . . . . . . 6 . . . . . . . . . . . . . Ram . | . . . . . . . . . . . . . . . . . . . . . . . Kick . | . . . . . . . . . . . . . . . . . . . . . . . Crush . | . . . . . . . . . . . . . . . . . . . . . . . Escape Stasis 18 | . . . . . . . . . . . . . . . . . 18 . . . . . Rewire 11 | . . . . . . . . . . . . . . . . . 11 . . . . . Trap 4 | . . 4 . . . . . . . . . . . . . . . . . . . . Miscellaneous 259 | . 14 4 . 18 28 . 10 9 . 8 5 15 8 . . 23 50 27 . 40 . . Route ------- -11/Junkyard -10/Materials (discovered 4 exits: [*Mat x3] / *Min) -10/Mines (discovered 3 exits: [*Mat x2] / *Exi) -10/Exiles -9/Mines -8/Materials (discovered 2 exits: *Fac x2) -7/Factory (discovered 4 exits: Sto x2 / *Low x2) -7/Lower Caves -7/Lower Caves (discovered 2 exits: *Fac / *Zio) -7/Zion -6/Proximity Caves -6/Factory -6/Lower Caves -6/Lower Caves (discovered 2 exits: Fac / *Dat) -6/Data Miner -5/Proximity Caves -5/Factory (discovered 5 exits: *Fac / *Upp x2 / *Ext x2) -5/Extension (discovered 3 exits: *Fac x2 / *Cet) -5/Cetus (discovered 3 exits: *Fac x2 / *Arc) -5/Archives (discovered 3 exits: *Fac / *Hub x2) -5/Hub_04(d) (discovered 4 exits: *Fac x4) -4/Factory -4/DSF History --------- Turn | Location | Event 1 | -11/Junkyard | Discovered new exit (range 0) 1 | -11/Junkyard | Entered Materials 103 | -10/Materials | Upgraded with Propulsion slot (x2) 135 | -10/Materials | Discovered new exit (range 15) 195 | -10/Materials | Upgraded with Utility slot (x1) 204 | -10/Materials | Discovered new exit (range 5) 291 | -10/Materials | Upgraded with Weapon slot (x1) 313 | -10/Materials | Build established: Mutant 499 | -10/Materials | Reached level 2 501 | -10/Materials | Upgraded with Propulsion slot (x1) 514 | -10/Materials | Discovered new exit (range 11) 552 | -10/Materials | Discovered new exit (range 10) 598 | -10/Materials | Entered Mines 605 | -10/Mines | Found a hidden stash of uninstalled traps 631 | -10/Mines | Met a Derelict bent on vengeance 674 | -10/Mines | Discovered new exit (range 10) 676 | -10/Mines | Learned 2 Materials zone layouts 696 | -10/Mines | Met a Derelict who couldn't figure out how to use a Trap Extractor 804 | -10/Mines | Discovered new exit (range 13) 965 | -10/Mines | Reached level 3 1039 | -10/Mines | Deemed a non-threat by the Exiles lab entrance 1039 | -10/Mines | Discovered new exit (range 5) 1043 | -10/Mines | Entered Exiles 1058 | -10/Exiles | Met 8R-AWN 1063 | -10/Exiles | Met EX-HEX 1072 | -10/Exiles | Met EX-BIN 1076 | -10/Exiles | Aligned with FarCom system 1076 | -10/Exiles | Given EX-Vault access code 1084 | -10/Exiles | Opened EX-Vault 1085 | -10/Exiles | Found AWS/Thermal 1111 | -10/Exiles | Warned to stay clear of 0b10 Research branches 1143 | -10/Exiles | Met EX-DEC 1189 | -10/Exiles | Discovered new exit (range 10) 1198 | -10/Exiles | Left Exiles lab with AWS/Thermal 1198 | -10/Exiles | Entered Mines 1203 | -9/Mines | Assembled infested the area 1205 | -9/Mines | Received a Mining Laser from a helpful Derelict 1206 | -9/Mines | Upgraded with Propulsion slot (x1) 1209 | -9/Mines | Assisted by a Guerilla fighting off Assembled 1223 | -9/Mines | Core integrity fell below 50% 1227 | -9/Mines | Learned location of Storage (-7) 1298 | -9/Mines | Destroyed 15 combat bots 1313 | -9/Mines | Reached level 4 1349 | -9/Mines | Discovered new exit (range 13) 1355 | -9/Mines | Entered Materials 1357 | -8/Materials | Reached level 5 1357 | -8/Materials | Upgraded with Weapon slot (x1) 1466 | -8/Materials | Destroyed 8 combat bots 1477 | -8/Materials | Discovered new exit (range 15) 1526 | -8/Materials | Reached level 6 1686 | -8/Materials | Reached level 7 1688 | -8/Materials | Upgraded with Weapon slot (x1) 1690 | -8/Materials | Upgraded with Utility slot (x2) 1700 | -8/Materials | Discovered new exit (range 16) 1703 | -8/Materials | Identified exit to Factory 1900 | -8/Materials | Reached level 8 2055 | -8/Materials | Entered Factory 2057 | -7/Factory | Reached level 9 2077 | -7/Factory | Upgraded with Utility slot (x1) 2129 | -7/Factory | Discovered new exit (range 7) 2171 | -7/Factory | Reached level 10 2174 | -7/Factory | Upgraded with Utility slot (x1) 2182 | -7/Factory | Identified exit to Storage 2182 | -7/Factory | Identified exit to Lower Caves 2203 | -7/Factory | Entered Lower Caves 2211 | -7/Lower Caves | Core integrity fell below 50% 2363 | -7/Lower Caves | Identified exit to Lower Caves 2488 | -7/Lower Caves | Build established: Sprinter 2515 | -7/Lower Caves | Entered another Lower Caves area 2517 | -7/Lower Caves | Reached level 11 2528 | -7/Lower Caves | Upgraded with Propulsion slot (x1) 2530 | -7/Lower Caves | Discovered new exit (range 15) 2539 | -7/Lower Caves | Spotted B-75 Beast 2667 | -7/Lower Caves | Learned location of Extension (-5) 2670 | -7/Lower Caves | Discovered new exit (range 10) 2734 | -7/Lower Caves | Reached level 12 2839 | -7/Lower Caves | Entered Zion 2848 | -7/Zion | Learned 8 Factory zone layouts 2851 | -7/Zion | Given the Hacking Drone Bay 2851 | -7/Zion | Found Prototype Device 2866 | -7/Zion | Given A8's code to call for help 2869 | -7/Zion | Discovered new exit (range 16) 2879 | -7/Zion | Gained Derelict followers 2894 | -7/Zion | Learned location of Quarantine (-2) 2914 | -7/Zion | Identified Hacking Drone Bay 2953 | -7/Zion | Rebuked by Imprinter 3034 | -7/Zion | Learned location of Warlord (-5) 3059 | -7/Zion | Found Prototype Device 3059 | -7/Zion | Identified Mobile Refinery Mk. CCLXVII 3087 | -7/Zion | Attacked by Zionites 3105 | -7/Zion | Core integrity fell below 20% 3138 | -7/Zion | Spotted 3W-ZHP(B) 3139 | -7/Zion | Spotted VA-8VL(B) 3150 | -7/Zion | Entered Proximity Caves 3152 | -6/Proximity Caves | Reached level 13 3153 | -6/Proximity Caves | Spotter reported a threat 3265 | -6/Proximity Caves | Upgraded with Power slot (x1) 3329 | -6/Proximity Caves | Identified exit to Factory 3329 | -6/Proximity Caves | Spotted B-75 Beast 3345 | -6/Proximity Caves | Build established: Hacker-Sprinter 3377 | -6/Proximity Caves | Attracted the attention of an 0b10 outpost 3433 | -6/Proximity Caves | Learned Factory garrison access intel 3460 | -6/Proximity Caves | Reached level 14 3473 | -6/Proximity Caves | Entered Factory 3474 | -6/Factory | Identified exit to Lower Caves 3474 | -6/Factory | Core integrity fell below 50% 3475 | -6/Factory | Loaded intel: 4 garrison access locations 3475 | -6/Factory | Reached level 15 3480 | -6/Factory | Upgraded with Utility slot (x1) 3507 | -6/Factory | Spotted B-75 Beast 3612 | -6/Factory | Entered Lower Caves 3709 | -6/Lower Caves | Reached level 16 3751 | -6/Lower Caves | Attracted the attention of an 0b10 checkpoint 3782 | -6/Lower Caves | Learned Factory stockpile data 3802 | -6/Lower Caves | A Commander dispatched an escort 3802 | -6/Lower Caves | Learned Factory emergency access door positions 3802 | -6/Lower Caves | Learned Extension emergency access door positions 3802 | -6/Lower Caves | Learned Factory security intel 3802 | -6/Lower Caves | Learned Extension security intel 3802 | -6/Lower Caves | Learned Research terminal intel 3806 | -6/Lower Caves | Discovered new exit (range 9) 3814 | -6/Lower Caves | Encountered a Warlord checkpoint 3875 | -6/Lower Caves | Entered another Lower Caves area 3875 | -6/Lower Caves | Accompanied by 2 allies 3876 | -6/Lower Caves | Commander's escort returned to base 3876 | -6/Lower Caves | Commander's escort returned to base 3894 | -6/Lower Caves | Reached level 17 3898 | -6/Lower Caves | Upgraded with Utility slot (x1) 3905 | -6/Lower Caves | Discovered new exit (range 15) 3940 | -6/Lower Caves | Learned Factory terminal intel 3954 | -6/Lower Caves | Identified exit to Factory 3954 | -6/Lower Caves | Learned location of 1 exit from Lower Caves 3954 | -6/Lower Caves | Learned Factory trap positions 3965 | -6/Lower Caves | Entered Data Miner 3965 | -6/Data Miner | Discovered new exit (range 6) 3971 | -6/Data Miner | Met Data Miner 3977 | -6/Data Miner | Received God Mode back door access code from Data Miner 3986 | -6/Data Miner | Entered Proximity Caves 3988 | -5/Proximity Caves | Reached level 18 4006 | -5/Proximity Caves | Spotted B-75 Beast 4010 | -5/Proximity Caves | Escorted by Enhanced Grunt 4028 | -5/Proximity Caves | Allies destroyed B-75 Beast 4050 | -5/Proximity Caves | Learned 4 Factory zone layouts 4098 | -5/Proximity Caves | Attracted the attention of an 0b10 checkpoint 4117 | -5/Proximity Caves | Discovered exit to Factory (range 12) 4119 | -5/Proximity Caves | Entered Factory 4120 | -5/Factory | Identified exit to Extension 4120 | -5/Factory | Core integrity fell below 50% 4121 | -5/Factory | Reached level 19 4122 | -5/Factory | Loaded intel: 122 trap records 4126 | -5/Factory | Loaded intel: 28 terminal locations 4235 | -5/Factory | Fabricated Exp. Core Analyzer (x1) 4351 | -5/Factory | Reached level 20 4361 | -5/Factory | Discovered new exit (range 15) 4374 | -5/Factory | Discovered new exit (range 15) 4419 | -5/Factory | First assault squad dispatched 4475 | -5/Factory | Upgraded with Propulsion slot (x1) 4513 | -5/Factory | Upgraded with Propulsion slot (x1) 4573 | -5/Factory | Reached level 21 4644 | -5/Factory | Incoming investigation squad redirected 4650 | -5/Factory | Incoming assault squad redirected 4739 | -5/Factory | Incoming assault squad redirected 4789 | -5/Factory | Identified exit to Upper Caves 4818 | -5/Factory | Incoming investigation squad redirected 4837 | -5/Factory | Upgraded with Utility slot (x1) 4866 | -5/Factory | Found Prototype Launcher 4866 | -5/Factory | Identified Mni. Smartbomb Launcher 4874 | -5/Factory | Entered Extension 4876 | -5/Extension | Reached level 22 4878 | -5/Extension | Disrupted transfer network 4885 | -5/Extension | Identified exit to Cetus 4943 | -5/Extension | Rescued A7 4962 | -5/Extension | Rescued a captive Derelict 5049 | -5/Extension | Rescued a captive Derelict 5050 | -5/Extension | Rescued a captive Derelict 5117 | -5/Extension | Spotted B-75 Beast 5127 | -5/Extension | Extracted ID and sensor layout for unrecognized location from A7's data core 5127 | -5/Extension | Spotted B-75 Beast 5174 | -5/Extension | First assault squad dispatched 5180 | -5/Extension | Destroyed B-75 Beast 5190 | -5/Extension | Incoming assault squad redirected 5201 | -5/Extension | Destroyed 8 combat bots 5204 | -5/Extension | Destroyed B-75 Beast 5234 | -5/Extension | Discovered new exit (range 3) 5239 | -5/Extension | High security lockdown imminent 5257 | -5/Extension | Rescued a captive Derelict 5257 | -5/Extension | Rescued a captive Derelict 5261 | -5/Extension | Rescued a captive Derelict 5267 | -5/Extension | Rescued a captive Derelict 5269 | -5/Extension | Rescued a captive Derelict 5273 | -5/Extension | Rescued a captive Derelict 5290 | -5/Extension | Rescued a captive Derelict 5298 | -5/Extension | Rescued a captive Derelict 5299 | -5/Extension | Discovered new exit (range 10) 5303 | -5/Extension | Entered Cetus 5305 | -5/Cetus | Reached level 23 5305 | -5/Cetus | Spotted Cetus Guard 5307 | -5/Cetus | Spotted Cetus Guard 5308 | -5/Cetus | Spotted Cetus Guard 5321 | -5/Cetus | Spotted Cetus Guard 5323 | -5/Cetus | Destroyed Cetus Guard 5333 | -5/Cetus | Destroyed Cetus Guard 5344 | -5/Cetus | Destroyed Cetus Guard 5354 | -5/Cetus | Destroyed Cetus Guard 5397 | -5/Cetus | Discovered new exit (range 16) 5535 | -5/Cetus | Enhanced Grunt warped into view, answering call for help 5535 | -5/Cetus | Enhanced Grunt warped into view, answering call for help 5603 | -5/Cetus | Discovered new exit (range 16) 5640 | -5/Cetus | Spotted Cetus Guard 5641 | -5/Cetus | Spotted Cetus Guard 5649 | -5/Cetus | Spotted Cetus Guard 5650 | -5/Cetus | Spotted Cetus Guard 5653 | -5/Cetus | Destroyed Cetus Guard 5656 | -5/Cetus | Destroyed Cetus Guard 5656 | -5/Cetus | Allies destroyed Cetus Guard 5663 | -5/Cetus | Destroyed Cetus Guard 5671 | -5/Cetus | Discovered new exit (range 16) 5672 | -5/Cetus | Met Revision 17 5690 | -5/Cetus | Found Prototype Device 5691 | -5/Cetus | Identified Exp. Thermal Shield 5748 | -5/Cetus | Entered Archives 5748 | -5/Archives | Accompanied by 1 ally 5850 | -5/Archives | Discovered new exit (range 16) 5861 | -5/Archives | Unable to access archive contents 5870 | -5/Archives | Unable to access archive contents 5873 | -5/Archives | Discovered new exit (range 16) 5879 | -5/Archives | Unable to access archive contents 5883 | -5/Archives | Discovered new exit (range 16) 5888 | -5/Archives | Unable to access archive contents 5907 | -5/Archives | Entered Hub_04(d) 5907 | -5/Hub_04(d) | Accompanied by 1 ally 6031 | -5/Hub_04(d) | Garrison activated, responded to threat 6035 | -5/Hub_04(d) | Reached level 24 6207 | -5/Hub_04(d) | First assault squad dispatched 6295 | -5/Hub_04(d) | Discovered new exit (range 3) 6298 | -5/Hub_04(d) | Identified exit to Factory 6303 | -5/Hub_04(d) | Incoming assault squad redirected 6415 | -5/Hub_04(d) | Disrupted transfer network 6466 | -5/Hub_04(d) | Network Hub disabled 6466 | -5/Hub_04(d) | High security lockdown imminent 6466 | -5/Hub_04(d) | Network Hub disabled 6467 | -5/Hub_04(d) | System corruption reached 10% 6485 | -5/Hub_04(d) | Entered Factory 6487 | -4/Factory | Reached level 25 6492 | -4/Factory | Destroyed 12 combat bots 6510 | -4/Factory | Spotted B-86 Titan 6510 | -4/Factory | Identified exit to DSF 6511 | -4/Factory | Entered DSF 6528 | -4/DSF | Core integrity fell below 50% 6533 | -4/DSF | Additional patrols routed to DSF 6536 | -4/DSF | Core integrity fell below 20% 6538 | -4/DSF | Destroyed by C-35 Carver with Carbide Saw Last Messages --------------- AMBIENT_HEAT=-10 GOAL=ESCAPE 06511_ Receiving FarCom transmissions... 06526_ ALERT: Suspicious intruders detected, dispatching Cutter reinforcements to area. 06527_ Penetrated by Slug. 06527_ Knocked back. 06529_ H-71 Marshal calls for reinforcements. 06529_ ALERT: Hostile activity reported, dispatching reinforcements to area. 06529_ Knocked back. 06532_ Triggered Alarm Trap. 06532_ An alarm sounds. 06533_ DSF_020 integrity compromised, routing additional patrols. 06533_ Knocked back. 06534_ C-35 Carver knocked back. 06534_ Lgt. Antimatter Reactor severed. 06535_ Acquired Lgt. Antimatter Reactor. 06536_ Cld. Cesium-ion Thruster severed. 06537_ C-35 Carver destroyed. Map ----- +----------------------------------------------------+ | ?????????????????????????????????????????? | | ?????????????????????????????????????????? | | ?????????????????????????????????????????? | | ?????????????????????????????????????????? | | ?????????????????????????????????????????? | | ?????????????????????????????????????????? | | ?????????????????????????????????????????? | | ?????????????????????????????????????????? | | ?????????????????????????????????????????? | | ?????????????????????????????????????????? | | ?????????????????????????????????????????? | | ?????????????????????????????????????????? | | ?????????????????????????????????????????? | | ?????????????????????????????????????????? | | ?????????????????????????????????????????? | | ?????????????????????????????????????????? | | ??????????????????????????????x??????????? | | ?????????????????????????????? *#???????? | | ?????????????????????????????? *#???????? | | ?????????????????????????????? *????????? | | ??????????????# ????#########? ###??????? | | ?????????????## ??#]]]# #? !!#??????? | | ??????????!!##A A##]]] ## !!#??????? | | ????????? * ==#??????? | | ????????? H !c/ ==#??????? | | ????????? c@c ==#??????? | | ?????????????#A A## # !!#??????? | | ?????????????##?????# # % # !!#??????? | | ????????????###?????## ## # ## ##???????? | | ????????????#!! ?????# ?## #!! #???????? | | ????????????#!! ???? ????##!! #???????? | | ?????????????!! ??##?????#!! #???????? | | ????????????### #????????### ##???????? | | ????????????# !!???????# #???????? | | ????????????# !!###????# #???????? | | ????????????# !!""######## ##???????? | | ????????????### ###!!!#!!### ###??????? | | ????????#!!!### ###!!!#!!## ""###????? | | ???? """""????? | | ???? ""##"????? | | ?????#!!# #!! **# # ##"""""#??????? | | ????????????#!! **#########"""""#??????? | | ????????????#########???????##"####??????? | | ?????????????????????????????#"#?????????? | | ?????????????????????????????#""?????????? | | ?????????????????????????????????????????? | | ?????????????????????????????????????????? | | ?????????????????????????????????????????? | | ?????????????????????????????????????????? | | ?????????????????????????????????????????? | +----------------------------------------------------+ Best States ------------- Heat Dissipation 110 Coolant Potential 65 Energy Generation 41 Energy Capacity 565 Matter Stores 300 Matter Capacity 300 Sight Range 16 Terrain Scan Range 14 Terrain Scan Density 10 Cloak Strength 2 Additional Mass Support 12 Armor Coverage 225 Resistance: KI 25 Resistance: TH 30 Resistance: EX 10 Weapon Cycling 20 Phase Shifting 5 Evasion (%) 79 Targeting Accuracy 16 Target Analysis 5 Core Analysis 8 Recoil Reduction 1 Energy Filtering 50 Particle Charging 25 Offensive Hacking 34 Defensive Hacking 24 Item Schematics ----------------- Ion Cannon | -8/Materials | Extracted Adv. Beam Cannon | -8/Materials | Extracted Hvy. Hammer | -8/Materials | Extracted Arc Thrower | -7/Zion | Free Slug Cannon | -7/Zion | Free Ripper | -7/Zion | Free Enh. Optical Array | -7/Zion | Archive Chainsword | -7/Zion | Archive Imp. Shield Generator | -7/Zion | Archive Matter Compressor | -7/Zion | Archive Hyp. Coil Gun | -7/Zion | Archive Hvy. Rocket Launcher | -7/Zion | Archive Lgt. Angular Momentum Engine | -7/Zion | Archive Fusion Compressor | -7/Zion | Archive Adv. Terrain Scan Processor | -7/Zion | Archive Drone Bay | -7/Zion | Archive Flak Gun | -7/Zion | Archive Angular Momentum Engine | -7/Zion | Archive Coolant Injector | -7/Zion | Archive Phasing Sabre | -7/Zion | Archive Combat Drone Bay | -6/Data Miner | Free Lgt. Regenerative Plating | -6/Data Miner | Free Cld. Nuclear Pulse Thruster | -6/Data Miner | Free Prc. Matter Filter | -6/Data Miner | Free Hvy. Proton Cannon | -6/Data Miner | Free Adv. Medium Treads | -6/Data Miner | Free Imp. Phase Shifter | -6/Data Miner | Free Matter Neutralizer | -6/Data Miner | Free Dispersion Rifle | -6/Data Miner | Free Particle Reactor | -6/Data Miner | Free Com. Battery | -5/Factory | Extracted Antigrav System | -5/Extension | Hacked Antimatter Reactor | -5/Extension | Hacked Robot Schematics ------------------ R-06 Scavenger | -7/Zion | Archive K-01 Serf | -7/Zion | Archive L-31 Rogue | -7/Zion | Archive X-77 Beamer | -7/Zion | Archive R-10 Processor | -6/Data Miner | Free M-22 Extractor | -6/Data Miner | Free C-35 Carver | -6/Data Miner | Free X-62 Marksman | -6/Data Miner | Free G-67 Veteran | -6/Data Miner | Free B-60 Warrior | -6/Data Miner | Free Fabricated ------------ Exp. Core Analyzer | x1 | -5/Factory | Preloaded Alien Tech Used ----------------- None Achievements -------------- None Challenges ------------ None RPGLIKE | -11 -10 -10 -10 -9 -8 -7 -7 -7 -7 -6 -6 -6 -6 -6 -5 -5 -5 -5 -5 -5 -4 -4 --------- Run | Jun Mat Min Exi Min Mat Fac Low Low Zio Pro Fac Low Low Dat Pro Fac Ext Cet Arc Hub Fac DSF Levels Raised 24 | . 1 1 . 1 4 2 . 2 . 2 1 1 1 . 1 3 1 1 . 1 1 . XP Earned 39561 | 3000 1825 1225 350 1350 6861 1998 1350 1850 650 2100 1641 1950 919 453 2323 4151 1879 899 317 1275 734 461 XP Spent 37430 | . 4450 50 . 3000 5450 3100 . 1700 1750 560 3650 . 2300 . . 6900 700 1800 570 1450 . . Upgrades 55 | . 8 1 . 5 11 2 . 1 2 3 6 . 1 . . 3 2 4 3 3 . . Power Slot 1 | . . . . . . . . . . 1 . . . . . . . . . . . . Propulsion Slot 7 | . 3 . . 1 . . . 1 . . . . . . . 2 . . . . . . Utility Slot 8 | . 1 . . . 2 2 . . . . 1 . 1 . . 1 . . . . . . Weapon Slot 3 | . 1 . . . 2 . . . . . . . . . . . . . . . . . Core Integrity 2 | . . . . . . . . . . 2 . . . . . . . . . . . . Heat Dissipation 9 | . . 1 . . 5 . . . . . . . . . . . . . 3 . . . Mass Support 2 | . . . . 1 1 . . . . . . . . . . . . . . . . . Inventory Capacity 4 | . 1 . . . 1 . . . 2 . . . . . . . . . . . . . Hack Attack % 2 | . . . . . . . . . . . 2 . . . . . . . . . . . KI Resistance % 4 | . . . . . . . . . . . 3 . . . . . . 1 . . . . TH Resistance % 3 | . . . . . . . . . . . . . . . . . . 3 . . . . EX Resistance % 2 | . . . . . . . . . . . . . . . . . . . . 2 . . KI Damage % 2 | . . . . . . . . . . . . . . . . . 2 . . . . . TH Damage % 4 | . . . . 3 . . . . . . . . . . . . . . . 1 . . EX Damage % 2 | . 2 . . . . . . . . . . . . . . . . . . . . . Protomatter Created 2333 | . 107 41 . 123 396 . 55 104 . 79 40 115 68 . 11 251 356 155 . 417 . 15 Integrity Restored 5521 | . 275 76 . 339 518 . 216 183 . 192 120 333 174 . . 537 1141 564 . 853 . . Core 5123 | . 273 76 . 339 380 . 216 183 . 192 120 333 174 . . 537 974 564 . 762 . . Parts 398 | . 2 . . . 138 . . . . . . . . . . . 167 . . 91 . . Protomatter Decayed 653 | . 15 13 . 15 211 . . . . 50 . . . . . 72 259 18 . . . . Game ------ Seed TachyonSubatomicDriver Manual? 0 Play Time 03:15:49 Cumulative 482.6 hours Start 2023.03.15 @ 15:38:50 End 2023.03.16 @ 13:19:56 Sessions 1 Manual Loads 0 Difficulty Rogue Special Mode Winter2019/RPGLIKE Game No. 519 Rogue 519 Adventurer 0 Explorer 0 Win Type - Total 1 Types 1/0/0/0/0/0/0/0/0 Lore% 61 Gallery% 81 Achievement% 65 Wizard Run 0 Options --------- ASCII 0 Keyboard 0 Movement Mouse Keybinds 0 Fullscreen 2 Font 24/Smallcaps Map View 76x50 Tactical HUD 1 Map Filters NONE Filters NONE Steam 1 RUN: 4e18216b-993c-40aa-80cc-c08bc1c20d6f